[Event "Seniors-LEM-65 Sachsen-Anhalt 2024"]
[Site "Magdeburg"]
[Date "2024.07.05"]
[Round "5.12"]
[White "Albert, Gerhard"]
[Black "Haase, Reinhard"]
[Result "0-1"]
[ECO "B02"]
[WhiteElo "1888"]
[BlackElo "2044"]
[Annotator "NA RC"]
[PlyCount "90"]
[EventDate "2024.06.25"]
[EventType "swiss"]
[EventCountry "GER"]
[SourceTitle "playchess.com"]
[Source "ChessBase"]
[SourceQuality "1"]
[TimeControl "40/5400+30:1800+30"]

1. e4 {[%emt 0:00:06]} d5 {[%emt 0:00:06]} 2. exd5 {[%emt 0:00:43]} Nf6 {[%emt 0:00:07]} 3. Nc3 {[%emt 0:00:38]} Nxd5 {[%emt 0:00:32]} 4. Qf3 {[%emt 0:00:35]} Nf6 {[%emt 0:03:48]} 5. Bc4 {[%emt 0:01:58]} Nc6 {[%emt 0:00:39]} 6. Qd1 {[%emt 0:05:25] B02: Alekhine's Defence: Chase Variation and lines with early Nc3.} e5 {[%emt 0:02:04]} 7. d3 {[%emt 0:01:02]} Bc5 {[%emt 0:07:44]} 8. Nf3 {[%emt 0:08:03]} h6 {[%emt 0:07:00]} 9. a3 {[%emt 0:07:24]} O-O {[%emt 0:01:10]} 10. O-O {[%emt 0:03:07]} Bg4 {[%emt 0:03:06]} 11. h3 {[%emt 0:00:15]} Bh5 {[%emt 0:01:41]} 12. Be3 {[%emt 0:01:28]} Bd4 {[%emt 0:06:26]} 13. Rb1 {[%emt 0:05:35]} Bxc3 {[%emt 0:09:59]} 14. bxc3 {[%emt 0:00:15]} Na5 {[%emt 0:03:29]} 15. Ba2 {[%emt 0:03:40]} Qd6 $2 {[%emt 0:03:31]} (15... e4 $11 16. dxe4 Nxe4) 16. Qc1 {[%emt 0:00:23]} Bxf3 {[%emt 0:01:39]} 17. gxf3 {[%emt 0:00:12]} b6 {[%emt 0:08:19]} 18. f4 {[%emt 0:05:22]} Nh5 {[%emt 0:06:50]} 19. fxe5 {[%emt 0:04:59]} Qxe5 {[%emt 0:00:08]} 20. Qd1 {[%emt 0:00:42]} Nf6 {[%emt 0:02:39]} 21. Bd4 {[%emt 0:04:16]} Qg5+ {[%emt 0:00:38]} 22. Kh1 {[%emt 0:00:33]} Qf5 {[%emt 0:02:06]} 23. Kh2 {[%emt 0:06:37]} (23. Kg2 $142) 23... Rad8 {[%emt 0:02:44]} 24. Rg1 {[%emt 0:01:30]} Qf4+ {[%emt 0:03:05]} ({Black should try} 24... Nc6 $17 25. Be3 Ne5) 25. Rg3 {[%emt 0:01:37]} Rxd4 {[%emt 0:01:12]} 26. cxd4 {[%emt 0:00:11]} Qxf2+ {[%emt 0:00:23]} 27. Rg2 {[%emt 0:00:31]} Qf4+ $11 {[%emt 0:02:11]} 28. Kh1 {[%emt 0:00:57]} Re8 {[%emt 0:06:23]} 29. Qg1 {[%emt 0:01:15]} Re3 {[%emt 0:02:34]} 30. Rxg7+ {[%emt 0:03:31]} Kh8 {[%emt 0:00:19]} 31. Rg2 {[%emt 0:00:15]} Rxh3+ {[%emt 0:00:49]} 32. Rh2 {[%emt 0:00:10]} Qf3+ {[%emt 0:02:16]} 33. Qg2 {[%emt 0:00:09]} Rxh2+ {[%emt 0:00:59]} 34. Kxh2 {[%emt 0:00:14]} Ng4+ {[%emt 0:02:11]} 35. Kg1 {[%emt 0:00:48]} Qe3+ {[%emt 0:00:21]} 36. Kf1 {[%emt 0:00:58]} Qxd4 {[%emt 0:01:30]} 37. Qa8+ {[%emt 0:02:02]} Kg7 {[%emt 0:00:46]} 38. Qg2 {[%emt 0:00:22]} Kh8 {[%emt 0:02:01]} 39. Qg3 {[%emt 0:11:23]} f5 {[%emt 0:03:29]} 40. Re1 {[%emt 0:01:15]} Nc6 {[%emt 0:01:43]} 41. Re8+ {[%emt 0:30:38]} Kg7 {[%emt 0:02:01]} 42. Qxc7+ {[%emt 0:00:00]} Kg6 {[%emt 0:03:05]} 43. Qxc6+ {[%emt 0:00:00]} Kg5 {[%emt 0:00:38]} 44. Rg8+ {[%emt 0:00:00]} Kf4 {[%emt 0:00:54]} 45. Qc4 {[%emt 0:00:00]} Ne3+ {[%emt 0:00:07]} 0-1

[Event "Seniors-LEM-65 Sachsen-Anhalt 2024"]
[Site "Magdeburg"]
[Date "2024.07.05"]
[Round "5.13"]
[White "Lehr, Thomas"]
[Black "Schmidt, Gerhard"]
[Result "1/2-1/2"]
[ECO "B22"]
[WhiteElo "1954"]
[BlackElo "2112"]
[Annotator "RC"]
[PlyCount "101"]
[EventDate "2024.06.25"]
[EventType "swiss"]
[EventCountry "GER"]
[SourceTitle "playchess.com"]
[Source "ChessBase"]
[SourceQuality "1"]
[TimeControl "40/5400+30:1800+30"]

1. e4 {[%emt 0:00:03]} c5 {[%emt 0:00:19]} 2. c3 {[%emt 0:00:11]} e5 {[%emt 0:00:28]} 3. Nf3 {[%emt 0:04:54]} Nc6 {[%emt 0:00:43]} 4. Be2 {[%emt 0:04:32]} Nf6 {[%emt 0:01:08]} 5. d3 {[%emt 0:00:38]} Be7 {[%emt 0:02:57]} 6. O-O {[%emt 0:01:42]} d5 {[%emt 1:27:55]} 7. Qc2 O-O {[%emt 0:00:00]} 8. a4 {[%emt 0:02:25]} h6 {[%emt 0:00:00]} 9. Re1 {[%emt 0:10:04]} Be6 {[%emt 0:00:00]} 10. Bf1 {[%emt 0:04:03]} Qc7 {[%emt 0:00:00]} 11. Nbd2 {[%emt 0:11:50]} Rfe8 {[%emt 0:00:00]} 12. b3 {[%emt 0:03:39]} Rac8 {[%emt 0:00:00]} 13. Ba3 {[%emt 0:03:09]} d4 {[%emt 0:00:00]} 14. c4 {[%emt 0:09:08]} g5 {[%emt 0:00:00]} 15. g3 {[%emt 0:03:51]} Kh8 {[%emt 0:00:00]} 16. Be2 {[%emt 0:06:29]} Nh7 {[%emt 0:00:00]} 17. Kh1 {[%emt 0:02:04]} b6 {[%emt 0:00:00]} 18. Qd1 {[%emt 0:04:06]} Rg8 {[%emt 0:00:00]} 19. Ng1 {[%emt 0:05:27]} Qd7 {[%emt 0:00:00]} 20. Bf3 {[%emt 0:03:59]} a5 {[%emt 0:00:00]} 21. Bc1 {[%emt 0:07:03]} Kg7 {[%emt 0:00:00]} 22. Nf1 {[%emt 0:04:30]} Rh8 {[%emt 0:00:00]} 23. Bg2 {[%emt 0:01:52]} Bd6 {[%emt 0:00:00]} 24. h3 {[%emt 0:06:51]} Rcg8 {[%emt 0:00:00]} 25. Nh2 {[%emt 0:00:00]} Kf8 {[%emt 0:01:00]} 26. Qe2 {[%emt 0:00:00]} Ke8 {[%emt 0:00:55]} 27. Ra2 {[%emt 0:00:00]} Kd8 {[%emt 0:00:25]} 28. Qf1 {[%emt 0:00:00]} Nf8 {[%emt 0:01:22]} 29. Bf3 {[%emt 0:01:19]} h5 {[%emt 0:01:19]} 30. Bd1 {[%emt 0:00:26]} f6 {[%emt 0:00:15]} 31. Qg2 {[%emt 0:00:36]} Ng6 {[%emt 0:00:12]} 32. Rb2 {[%emt 0:00:29]} Nb4 {[%emt 0:01:26]} 33. Be2 {[%emt 0:00:14]} Kc7 {[%emt 0:00:36]} 34. Rd1 {[%emt 0:01:10]} Nc6 {[%emt 0:02:12]} 35. Bf1 {[%emt 0:00:37]} Nd8 {[%emt 0:00:19]} 36. f3 {[%emt 0:00:38]} g4 {[%emt 0:01:40]} 37. h4 {[%emt 0:00:18]} gxf3 {[%emt 0:00:15]} 38. Qxf3 {[%emt 0:00:02]} Be7 {[%emt 0:00:45]} 39. Rf2 {[%emt 0:00:16]} Nf7 {[%emt 0:01:09]} 40. Re1 {[%emt 0:00:58]} Nh6 {[%emt 0:02:10]} 41. Bxh6 {[%emt 0:03:24]} Rxh6 {[%emt 0:00:03]} 42. Rg2 {[%emt 0:03:48]} Rhh8 {[%emt 0:00:20]} 43. Ree2 {[%emt 0:03:43]} Qc8 {[%emt 0:06:01]} 44. Ref2 {[%emt 0:03:28]} Rf8 {[%emt 0:02:22]} 45. Qe2 {[%emt 0:01:44]} Bd7 {[%emt 0:00:49]} 46. Ngf3 {[%emt 0:06:10]} Bd6 {[%emt 0:11:19]} 47. Rg1 {[%emt 0:03:50]} Ne7 {[%emt 0:03:11]} 48. Bg2 {[%emt 0:02:04]} Rhg8 {[%emt 0:01:56]} 49. Nf1 {[%emt 0:00:44]} Qe8 {[%emt 0:01:16]} 50. Kh2 {[%emt 0:01:43]} Qg6 {[%emt 0:01:14]} 51. Bh3 {[%emt 0:02:29]} 1/2-1/2

[Event "Seniors-LEM-65 Sachsen-Anhalt 2024"]
[Site "Magdeburg"]
[Date "2024.07.05"]
[Round "5.14"]
[White "Krien, Hartmut"]
[Black "Andersen, Knut"]
[Result "1/2-1/2"]
[ECO "B30"]
[WhiteElo "1928"]
[BlackElo "2104"]
[Annotator "RC"]
[PlyCount "37"]
[EventDate "2024.06.25"]
[EventType "swiss"]
[EventCountry "GER"]
[SourceTitle "playchess.com"]
[Source "ChessBase"]
[SourceQuality "1"]
[TimeControl "40/5400+30:1800+30"]

1. e4 {[%emt 0:00:04]} c5 {[%emt 0:00:07]} 2. Nf3 {[%emt 0:00:20]} Nc6 {[%emt 0:00:06]} 3. Bb5 {[%emt 0:00:23]} Nf6 {[%emt 0:00:44]} 4. Bxc6 {[%emt 0:00:46]} dxc6 {[%emt 0:00:15]} 5. d3 {[%emt 0:01:32]} g6 {[%emt 0:00:30]} 6. b3 {[%emt 0:01:04]} Bg7 {[%emt 0:00:15]} 7. Bb2 {[%emt 0:00:43]} O-O {[%emt 0:00:13]} 8. h3 {[%emt 0:01:47]} b5 {[%emt 0:00:41]} 9. Nbd2 {[%emt 0:03:32]} a5 {[%emt 0:02:05]} 10. a4 {[%emt 0:01:32]} h6 {[%emt 0:00:56]} 11. O-O {[%emt 0:10:14]} Be6 {[%emt 0:00:38]} 12. Qe2 {[%emt 0:10:10]} Qb6 {[%emt 0:01:41]} 13. Qe3 {[%emt 0:17:19]} Rfd8 {[%emt 0:01:08]} 14. Ra2 {[%emt 0:08:55]} Nd7 {[%emt 0:18:31]} 15. Bxg7 {[%emt 0:00:36]} Kxg7 {[%emt 0:00:07]} 16. Raa1 {[%emt 0:07:23]} c4 {[%emt 0:04:41]} 17. Qd4+ {[%emt 0:04:18]} f6 {[%emt 0:03:04]} 18. bxc4 {[%emt 0:01:45]} Nc5 {[%emt 0:03:13]} 19. Qb2 {[%emt 0:01:49]} 1/2-1/2

[Event "Seniors-LEM-65 Sachsen-Anhalt 2024"]
[Site "Magdeburg"]
[Date "2024.07.05"]
[Round "5.15"]
[White "Krueger, Erich"]
[Black "Schwis, Joachim"]
[Result "1-0"]
[ECO "A42"]
[WhiteElo "2095"]
[BlackElo "1950"]
[Annotator "NA RC"]
[PlyCount "79"]
[EventDate "2024.06.25"]
[EventType "swiss"]
[EventCountry "GER"]
[SourceTitle "playchess.com"]
[Source "ChessBase"]
[SourceQuality "1"]
[TimeControl "40/5400+30:1800+30"]

1. d4 {[%emt 0:00:04]} d6 {[%emt 0:00:20]} 2. c4 {[%emt 0:00:09]} g6 {[%emt 0:00:08]} 3. Nc3 {[%emt 0:00:26]} Bg7 {[%emt 0:00:09]} 4. e4 {[%emt 0:00:09]} Nc6 {[%emt 0:01:03]} 5. Be3 {[%emt 0:02:35]} e5 {[%emt 0:00:39]} 6. d5 {[%emt 0:00:29]} Nce7 {[%emt 0:00:49]} 7. c5 {[%emt 0:03:45] is cutting edge theory.} f5 {[%emt 0:03:30]} 8. cxd6 {[%emt 0:00:23]} cxd6 {[%emt 0:00:43]} 9. f3 {[%emt 0:00:31] A42: Modern Defence: Averbakh Variation.} Nf6 {[%emt 0:01:41]} 10. Bb5+ {[%emt 0:04:16]} Kf7 {[%emt 0:02:53]} 11. Nge2 {[%emt 0:06:26]} a6 {[%emt 0:04:05]} 12. Bd3 {[%emt 0:05:16]} Bd7 $146 {[%emt 0:06:07]} ({Predecessor:} 12... b5 13. b4 f4 14. Bf2 g5 15. a4 bxa4 16. Rxa4 g4 17. b5 a5 18. Nc1 Ng6 {0-1 Lehmann,H (2227)-Frey,B (2171) Oberliga NRW 0001 II 2000 (1.7)}) 13. O-O {[%emt 0:01:02]} f4 {[%emt 0:00:16]} 14. Bf2 {[%emt 0:00:17]} g5 {[%emt 0:00:10]} 15. Na4 {[%emt 0:03:36]} Bxa4 {[%emt 0:02:12]} 16. Qxa4 {[%emt 0:00:11]} Qd7 {[%emt 0:02:43]} 17. Nc3 {[%emt 0:05:48]} Rhc8 {[%emt 0:03:45]} 18. Rac1 {[%emt 0:02:21]} Bf8 {[%emt 0:03:49]} 19. Qb3 {[%emt 0:12:59]} Ne8 {[%emt 0:04:39]} 20. a4 {[%emt 0:05:01]} Ng6 {[%emt 0:05:22]} 21. a5 {[%emt 0:02:32]} Be7 {[%emt 0:02:58]} 22. Qa4 {[%emt 0:09:51]} Qxa4 {[%emt 0:01:08]} 23. Nxa4 {[%emt 0:00:07]} Rxc1 {[%emt 0:00:17]} 24. Rxc1 {[%emt 0:00:08]} Bd8 {[%emt 0:00:28]} 25. Nb6 {[%emt 0:03:33]} Bxb6 {[%emt 0:02:00]} 26. Bxb6 {[%emt 0:00:10]} Ne7 {[%emt 0:00:24]} 27. b4 {[%emt 0:03:08]} Rc8 {[%emt 0:00:10]} 28. Rc2 {[%emt 0:01:32]} Rxc2 {[%emt 0:00:42]} 29. Bxc2 {[%emt 0:00:08]} Nf6 {[%emt 0:10:38]} 30. Ba4 {[%emt 0:01:53]} Nc8 {[%emt 0:01:50]} 31. Bd8 {[%emt 0:00:31]} (31. Bf2 $16) 31... Ne7 {[%emt 0:02:15]} 32. Kf2 $16 {[%emt 0:02:19]} Nc8 {[%emt 0:05:54]} 33. Ke2 {[%emt 0:04:04]} h6 {[%emt 0:01:50]} 34. Kd3 {[%emt 0:01:10]} Ne7 {[%emt 0:09:41]} 35. h3 {[%emt 0:00:36]} h5 {[%emt 0:01:07]} 36. Kc4 {[%emt 0:02:01]} h4 {[%emt 0:01:34]} 37. b5 {[%emt 0:02:19]} g4 {[%emt 0:01:53]} 38. bxa6 {[%emt 0:05:31]} bxa6 {[%emt 0:00:07]} 39. Kd3 {[%emt 0:03:23]} g3 {[%emt 0:09:11]} 40. Bc6 {[%emt 0:09:50]} 1-0

[Event "Seniors-LEM-65 Sachsen-Anhalt 2024"]
[Site "Magdeburg"]
[Date "2024.07.05"]
[Round "5.16"]
[White "Bauer, Burkhard"]
[Black "Just, Joachim"]
[Result "0-1"]
[ECO "A12"]
[WhiteElo "2043"]
[BlackElo "1909"]
[Annotator "NA RC"]
[PlyCount "82"]
[EventDate "2024.06.25"]
[EventType "swiss"]
[EventCountry "GER"]
[SourceTitle "playchess.com"]
[Source "ChessBase"]
[SourceQuality "1"]
[TimeControl "40/5400+30:1800+30"]

1. c4 {[%emt 0:00:03]} Nf6 {[%emt 0:00:24]} 2. Nc3 {[%emt 0:00:02]} c6 {[%emt 0:00:40]} 3. Nf3 {[%emt 0:01:46]} d5 {[%emt 0:00:47]} 4. e3 {[%emt 0:00:11]} Bg4 {[%emt 0:00:27]} 5. Be2 {[%emt 0:00:09]} e6 {[%emt 0:00:54]} 6. b3 {[%emt 0:00:29]} Nbd7 {[%emt 0:00:37]} 7. Bb2 {[%emt 0:00:04]} Bd6 {[%emt 0:00:34] A12: English Opening: 1...c6 with b3 by White.} 8. d4 {[%emt 0:00:26]} O-O {[%emt 0:00:49]} 9. O-O {[%emt 0:00:05]} Rc8 {[%emt 0:01:26]} 10. h3 {[%emt 0:00:49]} Bxf3 {[%emt 0:00:20]} 11. Bxf3 {[%emt 0:00:02]} Ne8 {[%emt 0:02:10]} 12. e4 {[%emt 0:00:26]} dxe4 {[%emt 0:01:41]} 13. Bxe4 {[%emt 0:00:16]} Nef6 {[%emt 0:00:20]} 14. Bf3 {[%emt 0:03:06]} Re8 {[%emt 0:00:24]} 15. Re1 {[%emt 0:00:24]} Qa5 {[%emt 0:01:45]} 16. a3 {[%emt 0:06:18]} Qg5 {[%emt 0:02:53]} 17. Bc1 {[%emt 0:00:59]} Bf4 {[%emt 0:00:16]} 18. Qc2 {[%emt 0:11:09]} Nf8 {[%emt 0:03:51]} 19. g3 {[%emt 0:13:13]} Bxc1 {[%emt 0:02:26]} 20. Raxc1 {[%emt 0:00:05]} Ng6 {[%emt 0:01:51]} 21. Bg2 {[%emt 0:00:12]} Rcd8 {[%emt 0:00:47]} 22. Rcd1 {[%emt 0:00:12]} Qa5 {[%emt 0:01:39]} 23. Qb2 {[%emt 0:00:23]} Qc7 {[%emt 0:00:26]} 24. b4 {[%emt 0:01:02]} e5 {[%emt 0:03:23]} 25. Ne2 {[%emt 0:04:33]} e4 {[%emt 0:02:51]} 26. Nc1 {[%emt 0:00:51] [#]} e3 $1 {[%emt 0:00:38]} 27. Rxe3 {[%emt 0:04:14]} (27. Nd3 $11 {remains equal.}) 27... Rxe3 {[%emt 0:00:11]} 28. fxe3 {[%emt 0:00:17]} Qxg3 29. Qf2 Qg5 {[%emt 0:01:38]} 30. Kh1 {[%emt 0:01:45]} Re8 {[%emt 0:00:21]} 31. Re1 {[%emt 0:00:07]} Ne4 {[%emt 0:00:47]} 32. Bxe4 {[%emt 0:01:32]} Rxe4 {[%emt 0:00:12]} 33. Qf3 {[%emt 0:00:40]} Qe7 {[%emt 0:01:24]} 34. Nd3 {[%emt 0:01:18]} Rh4 {[%emt 0:02:00]} 35. Nf2 {[%emt 0:01:35]} Qd7 $2 {[%emt 0:02:20]} ({Black should play} 35... Rxd4 $19 36. exd4 Qxe1+ 37. Kh2 Qd2) 36. Qg3 {[%emt 0:02:12]} Qe6 {[%emt 0:03:12]} 37. c5 {[%emt 0:02:42]} (37. Rc1 $17 {was worth a try.}) 37... Rxd4 $19 {[%emt 0:02:33]} 38. exd4 {[%emt 0:00:40]} Qxe1+ {[%emt 0:00:17]} 39. Kg2 {[%emt 0:00:02]} h6 {[%emt 0:03:24]} 40. Qb8+ {[%emt 0:00:14]} Kh7 {[%emt 0:00:13]} 41. Qxb7 {[%emt 0:30:06]} Nh4+ {[%emt 0:31:14]} 0-1

[Event "Seniors-LEM-65 Sachsen-Anhalt 2024"]
[Site "Magdeburg"]
[Date "2024.07.05"]
[Round "5.17"]
[White "Klettke, Wolfgang"]
[Black "Zechel, Rolf-Ruediger"]
[Result "1-0"]
[ECO "B52"]
[WhiteElo "2008"]
[BlackElo "1870"]
[Annotator "NA RC"]
[PlyCount "73"]
[EventDate "2024.06.25"]
[EventType "swiss"]
[EventCountry "GER"]
[SourceTitle "playchess.com"]
[Source "ChessBase"]
[SourceQuality "1"]
[TimeControl "40/5400+30:1800+30"]

1. e4 {[%emt 0:00:03]} c5 {[%emt 0:00:12]} 2. Nf3 {[%emt 0:02:26]} d6 {[%emt 0:00:14]} 3. Bb5+ {[%emt 0:00:16]} Bd7 {[%emt 0:00:41]} 4. Bxd7+ {[%emt 0:00:09]} Qxd7 {[%emt 0:01:01]} 5. O-O {[%emt 0:01:45]} Nf6 {[%emt 0:00:19]} 6. Re1 {[%emt 0:00:29]} e6 {[%emt 0:02:29] B52: Sicilian: Moscow Variation with 3...Bd7.} 7. c4 {[%emt 0:00:23]} Be7 {[%emt 0:00:33]} 8. Nc3 {[%emt 0:01:56]} O-O {[%emt 0:02:07]} 9. d4 {[%emt 0:06:54]} cxd4 {[%emt 0:01:18]} 10. Nxd4 {[%emt 0:00:03]} a6 {[%emt 0:03:01]} 11. Be3 {[%emt 0:00:27]} Nc6 {[%emt 0:00:51]} 12. Rc1 {[%emt 0:05:29]} Rac8 {[%emt 0:02:07]} 13. b3 {[%emt 0:00:39]} Rfe8 {[%emt 0:02:04]} 14. f3 {[%emt 0:04:59]} h6 {[%emt 0:05:26]} 15. Qd2 {[%emt 0:03:59]} Bf8 {[%emt 0:02:08]} 16. Na4 {[%emt 0:05:03]} Qd8 {[%emt 0:03:48]} 17. Red1 {[%emt 0:03:51]} Ne5 {[%emt 0:07:35]} 18. h3 {[%emt 0:02:54]} Ned7 {[%emt 0:02:29]} 19. g4 {[%emt 0:03:06]} Be7 {[%emt 0:03:58]} 20. Kg2 {[%emt 0:01:17]} Nh7 {[%emt 0:06:22]} 21. Nc3 {[%emt 0:09:58]} Nc5 {[%emt 0:05:45]} 22. Nde2 {[%emt 0:03:44]} Qc7 {[%emt 0:03:48]} 23. Bf4 {[%emt 0:04:36]} Rcd8 {[%emt 0:02:20]} 24. b4 {[%emt 0:02:25]} e5 {[%emt 0:00:25]} 25. Be3 {[%emt 0:05:24]} Ne6 {[%emt 0:00:54]} 26. Nd5 {[%emt 0:01:00]} Qb8 {[%emt 0:02:07]} 27. a4 {[%emt 0:03:17]} b5 $2 {[%emt 0:01:33]} (27... Bg5 $16) 28. cxb5 {[%emt 0:00:17]} axb5 {[%emt 0:00:17]} 29. a5 {[%emt 0:01:04]} Bg5 {[%emt 0:02:44]} 30. Bxg5 $18 {[%emt 0:02:44]} hxg5 {[%emt 0:01:46]} 31. Rc6 {[%emt 0:00:56]} Rd7 {[%emt 0:03:16]} 32. Nb6 {[%emt 0:02:03]} Qb7 {[%emt 0:02:58]} 33. Qc3 {[%emt 0:01:30]} Rc7 {[%emt 0:04:38]} 34. Rdxd6 {[%emt 0:02:22]} Ree7 {[%emt 0:02:04]} 35. Nd5 {[%emt 0:00:47]} Rxc6 {[%emt 0:01:37]} 36. Nxe7+ {[%emt 0:00:38]} Qxe7 {[%emt 0:00:35]} 37. Rxc6 {[%emt 0:02:38]} 1-0

[Event "Seniors-LEM-65 Sachsen-Anhalt 2024"]
[Site "Magdeburg"]
[Date "2024.07.05"]
[Round "5.18"]
[White "Luebeck, Stephan"]
[Black "Lapp, Karl"]
[Result "1/2-1/2"]
[ECO "D03"]
[WhiteElo "1942"]
[BlackElo "2001"]
[Annotator "RC"]
[PlyCount "48"]
[EventDate "2024.06.25"]
[EventType "swiss"]
[EventCountry "GER"]
[SourceTitle "playchess.com"]
[Source "ChessBase"]
[SourceQuality "1"]
[TimeControl "40/5400+30:1800+30"]

1. d4 {[%emt 0:00:03]} d5 {[%emt 0:00:22]} 2. Nf3 {[%emt 0:00:05]} Nf6 {[%emt 0:00:11]} 3. Bg5 {[%emt 0:00:07]} Ne4 {[%emt 0:00:28]} 4. Bf4 {[%emt 0:00:06]} c6 {[%emt 0:00:55]} 5. e3 {[%emt 0:00:11]} Qb6 {[%emt 0:00:35]} 6. Qc1 {[%emt 0:00:09]} Bf5 {[%emt 0:00:48]} 7. c3 {[%emt 0:01:16]} Nd7 {[%emt 0:00:46]} 8. Nbd2 {[%emt 0:01:01]} h6 {[%emt 0:00:35]} 9. h3 {[%emt 0:00:37]} e6 {[%emt 0:01:32]} 10. Be2 {[%emt 0:02:53]} c5 {[%emt 0:07:05]} 11. Ne5 {[%emt 0:02:54]} Nef6 {[%emt 0:05:22]} 12. Ndf3 {[%emt 0:04:52]} Bd6 {[%emt 0:02:08]} 13. Nxd7 {[%emt 0:00:53]} Nxd7 {[%emt 0:00:06]} 14. Bxd6 {[%emt 0:00:47]} Qxd6 {[%emt 0:00:05]} 15. Qd2 {[%emt 0:01:24]} cxd4 {[%emt 0:01:00]} 16. exd4 {[%emt 0:00:10]} a6 {[%emt 0:01:05]} 17. Bd3 {[%emt 0:01:25]} Bxd3 {[%emt 0:00:44]} 18. Qxd3 {[%emt 0:00:03]} b5 {[%emt 0:00:10]} 19. O-O {[%emt 0:01:57]} O-O {[%emt 0:00:10]} 20. a3 {[%emt 0:06:18]} Rab8 {[%emt 0:00:45]} 21. Rfc1 {[%emt 0:15:34]} Rfc8 {[%emt 0:03:31]} 22. Rc2 {[%emt 0:02:24]} a5 {[%emt 0:03:17]} 23. Rac1 {[%emt 0:00:21]} Rc7 {[%emt 0:02:58]} 24. Qd2 {[%emt 0:06:29]} Rbc8 {[%emt 0:02:09]} 1/2-1/2

[Event "Seniors-LEM-65 Sachsen-Anhalt 2024"]
[Site "Magdeburg"]
[Date "2024.07.05"]
[Round "5.19"]
[White "Kalkmann, Hans"]
[Black "Lorenz, Dietmar"]
[Result "0-1"]
[ECO "D02"]
[WhiteElo "1910"]
[BlackElo "1981"]
[Annotator "NA RC"]
[PlyCount "64"]
[EventDate "2024.06.25"]
[EventType "swiss"]
[EventCountry "GER"]
[SourceTitle "playchess.com"]
[Source "ChessBase"]
[SourceQuality "1"]
[TimeControl "40/5400+30:1800+30"]

1. d4 {[%emt 0:00:10]} d5 {[%emt 0:00:06]} 2. Nf3 {[%emt 0:00:31]} Nf6 {[%emt 0:00:09]} 3. g3 {[%emt 0:00:18]} Bf5 {[%emt 0:00:26]} 4. Bg2 {[%emt 0:00:41]} e6 {[%emt 0:00:15]} 5. Bg5 {[%emt 0:01:03]} Be7 {[%emt 0:00:27]} 6. c3 {[%emt 0:00:55] D02: 1 d4 d5 2 Nf3 sidelines, including 2...Nf6 3 g3 and 2...Nf6 3 Bf4.} c6 {[%emt 0:00:35]} 7. Nh4 {[%emt 0:01:01]} Be4 {[%emt 0:01:32]} 8. Nd2 {[%emt 0:00:43]} Bxg2 {[%emt 0:00:42]} 9. Nxg2 {[%emt 0:00:17]} Nbd7 {[%emt 0:00:26]} 10. Qc2 {[%emt 0:01:07]} c5 {[%emt 0:05:32]} 11. dxc5 {[%emt 0:02:16]} Nxc5 {[%emt 0:00:42]} 12. Bxf6 {[%emt 0:00:54]} Bxf6 {[%emt 0:00:46]} 13. O-O {[%emt 0:00:28]} Qb6 {[%emt 0:02:53]} 14. e3 {[%emt 0:02:50]} O-O {[%emt 0:00:47]} 15. Nf4 {[%emt 0:00:26]} Rac8 {[%emt 0:03:53]} 16. Rab1 {[%emt 0:02:00]} Qc6 {[%emt 0:01:05]} 17. Nd3 {[%emt 0:01:27]} b5 {[%emt 0:05:29]} 18. Nxc5 {[%emt 0:01:31]} Qxc5 {[%emt 0:00:03]} 19. Qd3 {[%emt 0:00:35]} Rfd8 {[%emt 0:02:06]} 20. Rfd1 {[%emt 0:00:29]} Qb6 {[%emt 0:06:34]} 21. Qe2 {[%emt 0:01:56]} b4 {[%emt 0:04:40]} 22. c4 {[%emt 0:01:10]} Qa6 {[%emt 0:04:24]} 23. b3 {[%emt 0:05:41]} Qxa2 {[%emt 0:01:13]} 24. Kf1 {[%emt 0:00:09]} dxc4 {[%emt 0:14:52]} 25. Nxc4 {[%emt 0:02:16]} Rxd1+ {[%emt 0:00:24]} 26. Qxd1 {[%emt 0:01:13]} Rd8 {[%emt 0:01:48]} 27. Qe1 {[%emt 0:00:08]} Rd3 {[%emt 0:02:00]} 28. Rc1 {[%emt 0:17:30]} Rxb3 {[%emt 0:11:32]} 29. Nd2 {[%emt 0:10:02]} Qa6+ $19 {[%emt 0:00:26]} (29... Rc3 $142 30. Kg2 b3 31. Nxb3 Qxb3) 30. Qe2 {[%emt 0:00:29]} Qxe2+ {[%emt 0:03:01]} 31. Kxe2 {[%emt 0:00:14]} Rc3 {[%emt 0:00:30]} 32. Ra1 {[%emt 0:00:12]} Rxe3+ {[%emt 0:01:45]} 0-1